Cogmind - Beta 16 @@@ ROGUE MODE // 2025.11.08 @ 15:40:55 Player: FAQ Result: Destroyed by S-10 Pest with Light Assault Rifle Performance ------------- Evolutions (1) 500 Regions Visited (4) 800 Robots Destroyed (94) 470 Value Destroyed (3585) 3585 Prototype IDs (5) 100 Alien Tech Used (0) 0 Bonus (370) 370 TOTAL SCORE: 5825 Bonus ------- High Alert Combat Kills 70 Follower Combat Kills 328 Entered Garrisons 200 Friendly Fire -228 Cogmind --------- Core Integrity 0/400 Matter 292/300 Energy 160/160 System Corruption 0% Temperature Warm (152) Movement Walking (90) Location -9/Garrison Parts ------- > --- POWER (1) -------- Light Nuclear Core > --- PROPULSION (3) --- VSS Leg VSS Leg VSS Leg > --- UTILITY (3) ------ Large Storage Unit > --- WEAPON (2) ------- Advanced Beam Cannon High-powered Shotgun > --- INVENTORY (15) --- Armored Wheel VTOL Module Improved Flight Unit Sensor Array Hacking Suite Hacking Suite Hacking Suite Hacking Suite Relay Coupler [NC] (24) Relay Coupler [Swarmer] (31) Relay Coupler [Grunt] (22) Relay Coupler [Grunt] (31) Relay Coupler [Sentry] (20) Advanced Beam Cannon Datajack Peak State ------------ > --- POWER ------------ Cooled Ion Engine > --- PROPULSION ------- VSS Leg VSS Leg VSS Leg > --- UTILITY ---------- Large Storage Unit Light Armor Plating Hardened Medium Armor Plating > --- WEAPON ----------- Advanced Beam Cannon High-powered Shotgun > --- INVENTORY -------- Armored Wheel VTOL Module Improved Flight Unit Sensor Array Hacking Suite Hacking Suite Hacking Suite Hacking Suite Relay Coupler [NC] Relay Coupler [Grunt] Relay Coupler [Sentry] Advanced Beam Cannon Datajack [Rating: 26] Favorites ----------- Power Improved Ion Engine Engine Improved Ion Engine Power Core Light Nuclear Core Propulsion Improved Treads Treads Improved Treads Leg VSS Leg Wheel Armored Wheel Flight Unit VTOL Module Utility Large Storage Unit Storage Large Storage Unit Protection Light Armor Plating Weapon Advanced Beam Cannon Energy Gun Medium Laser Energy Cannon Advanced Beam Cannon Ballistic Gun High-powered Shotgun Ballistic Cannon Light Cannon Special Melee Weapon Datajack Build | -11 -10 -9 -9 -9 ------- Run | Yrd Mat Mat Sto Gar Slots Evolved 2 | . . 2 . . Power . | . . . . . Propulsion 1 | . . 1 . . Utility 1 | . . 1 . . Weapon . | . . . . . Parts Attached 46 | 6 7 8 11 14 Power 7 | 1 2 . 1 3 Engine 6 | 1 2 . 1 2 Core 1 | . . . . 1 Reactor . | . . . . . Propulsion 20 | 2 1 5 6 6 Treads 13 | 2 1 5 5 . Leg 3 | . . . . 3 Wheel 1 | . . . 1 . Hover . | . . . . . Flight 3 | . . . . 3 Utility 10 | 1 2 3 2 2 Device . | . . . . . Storage 3 | 1 2 . . . Processor . | . . . . . Hackware . | . . . . . Protection 7 | . . 3 2 2 Artifact . | . . . . . Weapon 9 | 2 2 . 2 3 Energy Gun 1 | 1 . . . . Energy Cannon 4 | . 1 . 2 1 Ballistic Gun 2 | 1 . . . 1 Ballistic Cannon 1 | . 1 . . . Launcher . | . . . . . Special Weapon . | . . . . . Impact Weapon . | . . . . . Slashing Weapon . | . . . . . Piercing Weapon . | . . . . . Special Melee Weapon 1 | . . . . 1 Unidentified Prototypes 3 | . 1 . 1 1 Parts Lost 18 | . 1 . 4 13 Power 3 | . . . . 3 Propulsion 6 | . . . 3 3 Utility 6 | . . . 1 5 Weapon 3 | . 1 . . 2 Highest Loss Streak 9 | . 1 . 2 9 To Critical Strikes . | . . . . . Average Backups 11 | . 6 13 14 13 Power 1 | . 1 1 1 . Propulsion 3 | . . 5 5 3 Utility 5 | . 4 5 6 7 Weapon . | . . . . 1 Tool/Special . | . . . . . Unused Backups 20 | . 2 2 3 13 Power 3 | . 1 1 1 . Propulsion 1 | . . . . 1 Utility 15 | . 1 . 2 12 Weapon 1 | . . 1 . . Tool/Special . | . . . . . Average Slot Usage (%) 96 | . 98 99 96 90 Engine 11 | . 14 11 11 9 Treads 24 | . 28 33 30 2 Leg 6 | . . . . 28 Storage 21 | . 27 22 22 11 Protection 8 | . . 10 10 15 Energy Cannon 9 | . 6 11 10 11 Ballistic Gun 3 | . 5 . . 8 Ballistic Cannon 9 | . 13 10 11 . Peak Build Rating 26 | 6 11 19 19 26 Average Rating 16 | 4 9 17 17 23 On Entrance 10 | . 6 11 19 17 Avg Prop Armor Cover (%) 8 | . . . 8 . Naked Turns . | . . . . . Heaviest Build 46 | 13 38 43 43 46 Greatest Support 69 | 40 40 69 69 63 Greatest Overweight (x) 10 | . . . 3 10 Average Overweight (x) . | . . . . 1 Largest Inventory Capacity 15 | 8 15 15 15 15 Average Capacity 13 | 7 11 15 15 15 Most Carried 15 | 1 9 15 15 15 Average Carried 11 | . 6 13 14 13 Final Capacity 15 | 8 15 15 15 15 Final Carried 15 | 1 9 14 15 15 Class Distribution -------------------- 81% | Mutant 18% | Scavenger-Mutant Dominant Class ---------------- Mutant | -10/Materials Mutant | -9/Materials Mutant | -9/Storage Scavenger-Mutant | -9/Garrison Resources | -11 -10 -9 -9 -9 ----------- Run | Yrd Mat Mat Sto Gar Matter Collected 1807 | 225 554 397 400 231 Remotely . | . . . . . Salvage Created 3122 | . 733 919 1157 313 Parts 203 | . 47 75 67 14 Haulers Intercepted 9 | . 2 4 3 . Recyclers Shooed . | . . . . . Parts Field Recycled . | . . . . . Retrieved Matter . | . . . . . Parts Self-Destructed . | . . . . . Prevented . | . . . . . Parts Restored . | . . . . . Kills | -11 -10 -9 -9 -9 ------- Run | Yrd Mat Mat Sto Gar Combat Hostiles Destroyed 69 | . 12 24 25 8 Guns 4 | . 2 . . 2 Cannons 65 | . 10 24 25 6 Classes Destroyed 12 | . 6 3 2 1 Worker 1 | . 1 . . . Tunneler 1 | . . 1 . . Hauler 9 | . 2 4 3 . Recycler 3 | . 1 2 . . Operator 5 | . 3 . 2 . Watcher 5 | . 2 2 1 . Swarmer 21 | . . 15 4 2 Grunt 26 | . 12 4 8 2 Brawler 3 | . . . 3 . Duelist 1 | . . . 1 . Sentry 16 | . . 5 9 2 Specialist 2 | . . . . 2 Thug 1 | . . . 1 . Best Kill Streak 8 | . 7 8 6 3 Combat Bots Only 8 | . 4 8 6 3 Max Kills in Single Turn 2 | . 1 2 1 1 Gunslinging . | . . . . . Exploded . | . . . . . Melee . | . . . . . Uniques/NPCs Destroyed . | . . . . . Combat | -11 -10 -9 -9 -9 -------- Run | Yrd Mat Mat Sto Gar Hostile Shots Fired 373 | . 39 105 72 157 Missed 90 | . 15 18 16 41 Hits 283 | . 24 87 56 116 Melee 6 | . . . 5 1 Projectile 277 | . 24 87 51 115 AOE 2 | . . . . 2 Critical Strikes 7 | . 1 1 3 2 Damage Taken 3526 | . 318 776 857 1575 Core 448 | . 40 59 121 228 Absorbed by Shields . | . . . . . Regen/Repaired (Parts) 139 | . 34 105 . . Core Remaining (%) 92 | 100 84 . . . Volleys Fired 239 | . 53 68 70 48 Largest 2 | . 2 2 2 2 Hottest 136 | . 98 98 98 136 Shots Fired 446 | . 105 127 131 83 Gun 64 | . 37 . . 27 Cannon 382 | . 68 127 131 56 Launcher . | . . . . . Special . | . . . . . Kinetic 246 | . 75 68 70 33 Thermal 200 | . 30 59 61 50 Explosive . | . . . . . Electromagnetic . | . . . . . Robot Hit Streak 28 | . 6 6 28 14 Robot Miss Streak 4 | . 4 4 3 4 Penetration Max . | . . . . . Secondary Targets . | . . . . . Shots Hit Robots 253 | . 53 67 91 42 Core Hits 106 | . 24 33 39 10 Critical Kills 1 | . . . 1 . Critical Parts Destroyed 1 | . . . . 1 Critical Strikes 12 | . 2 3 6 1 Meltdown 1 | . . . 1 . Destroy 1 | . . . . 1 Blast 10 | . 2 3 5 . Melee Attacks 6 | . . . . 6 Impact . | . . . . . Slashing . | . . . . . Piercing . | . . . . . Sneak Attacks 6 | . . . . 6 Combat Hostiles . | . . . . . Follow-up Attacks . | . . . . . Damage Inflicted 5190 | . 865 1493 1890 942 Guns 379 | . 211 . . 168 Cannons 4699 | . 650 1493 1890 666 Explosions 108 | . . . . 108 Melee . | . . . . . Ramming 4 | . 4 . . . Kinetic 2420 | . 547 734 874 265 Thermal 2658 | . 314 759 1016 569 Explosive 108 | . . . . 108 Electromagnetic . | . . . . . Impact . | . . . . . Slashing . | . . . . . Piercing . | . . . . . Highest Corruption 1 | . 1 . . . Average Corruption 1 | . 1 . . . Corruption Purged . | . . . . . Corruption Blocked . | . . . . . Effects 8 | . 8 . . . Message Errors 1 | . 1 . . . Matter Fused 3 | . 3 . . . Heat Flow Errors 2 | . 2 . . . Data Loss (minor) 2 | . 2 . . . Overload Shots . | . . . . . Overflow Damage 39 | . . 9 2 28 Projectiles 30 | . . 9 2 19 Explosions 9 | . . . . 9 Melee . | . . . . . Knockbacks 22 | . 4 6 11 1 Impact . | . . . . . Kinetic 20 | . 4 6 9 1 Secondary 2 | . . . 2 . Self-Inflicted Damage 108 | . . . . 108 Shots 1 | . . . . 1 Rammed 1 | . 1 . . . Targets Rammed 1 | . 1 . . . Kicked . | . . . . . Crushed . | . . . . . Highest Temperature 399 | . 197 360 328 399 Average Temperature 97 | . 51 123 86 112 Received Heat Transfer 696 | . 189 81 273 153 Effects 3 | . . 1 1 1 Energy Bleed 1 | . . . 1 . Interference 2 | . . 1 . 1 Siege Activations . | . . . . . Martial Activations . | . . . . . Shielding Activations . | . . . . . Robots Disrupted . | . . . . . Combat Hostiles . | . . . . . Robots Corrupted . | . . . . . Combat Hostiles . | . . . . . Parts Fried . | . . . . . Impact Corruptions . | . . . . . Robots Melted 1 | . . . 1 . Combat Hostiles . | . . . . . Parts Melted 11 | . . 4 3 4 Heat Transferred 4699 | . 703 1295 1739 962 Parts Sabotaged . | . . . . . Parts Stolen . | . . . . . Parts Stripped . | . . . . . Power Chain Reactions . | . . . . . Alert | -11 -10 -9 -9 -9 ------- Run | Yrd Mat Mat Sto Gar Maximum Alert Level 3 | . . 1 2 3 Low Security (%) 68 | 100 100 88 69 . Level 1 21 | . . 11 19 65 Level 2 7 | . . . 11 20 Level 3 2 | . . . . 13 Level 4 . | . . . . . Level 5 . | . . . . . High Security . | . . . . . Max Security . | . . . . . Peak Influence 885 | . 162 245 420 885 Initial 269 | . . 18 96 269 Average 175 | . 39 114 177 437 Influence Increases 2767 | . 404 660 857 846 Destroy 0b10 Robot/C 1640 | . 240 480 560 360 Destroy 0b10 Robot/NC 125 | . 45 45 35 . Destroy Leader 348 | . 68 102 158 20 Allied During Kill 44 | . . . 17 27 Successful Hack 91 | . 19 17 20 35 Disable Machine 30 | . 15 15 . . Anti-Garrison Action 300 | . . . . 300 Destroy Structure 99 | . 2 1 7 89 Lose Combat Pursuer 90 | . 15 . 60 15 Influence Decreases 1882 | . 360 475 672 375 Entered New Map 304 | . . 26 133 145 Time Decay 1217 | . 350 449 418 . Lost Part 180 | . 10 . 40 130 Lost Ally 120 | . . . 20 100 Purge Threat 61 | . . . 61 . Squads Dispatched 7 | . 3 1 3 . Investigation 2 | . 1 1 . . Extermination . | . . . . . Reinforcement 3 | . 2 . 1 . Assault 2 | . . . 2 . Garrison . | . . . . . Intercept . | . . . . . Searches Triggered . | . . . . . Construction Impeded . | . . . . . Haulers Reinforced . | . . . . . Active Scanning Responses . | . . . . . Cargo Convoy Interrupts . | . . . . . Stealth | -11 -10 -9 -9 -9 --------- Run | Yrd Mat Mat Sto Gar Distress Signals 6 | . 4 1 1 . Communications Jammed . | . . . . . Distress Signals . | . . . . . Times Spotted 123 | . 23 32 46 22 Peak Tracking Total 8 | . 7 6 8 7 Tactical Retreats 5 | . 1 . 3 1 Traps | -11 -10 -9 -9 -9 ------- Run | Yrd Mat Mat Sto Gar Traps Triggered 7 | . 1 1 2 3 Indirectly . | . . . . . Trap Hack Attempts 33 | . . . . 33 Triggered . | . . . . . Disarmed . | . . . . . Reprogrammed 1 | . . . . 1 Reused . | . . . . . Traps Extracted . | . . . . . Installed . | . . . . . Triggered . | . . . . . Machines | -11 -10 -9 -9 -9 ---------- Run | Yrd Mat Mat Sto Gar Machines Disabled 11 | . 2 1 . 8 Max in Single Turn 2 | . 1 1 . 2 Garrison Relay 5 | . . . . 5 Phase Generator 1 | . . . . 1 Machines Repaired . | . . . . . Machines Dismantled . | . . . . . Machines Sabotaged . | . . . . . Overloaded Fab Kills . | . . . . . Hacking | -11 -10 -9 -9 -9 --------- Run | Yrd Mat Mat Sto Gar Machines Accessed 28 | . 7 7 11 3 Terminals 20 | . 6 4 7 3 Fabricators . | . . . . . Repair Stations 3 | . 1 1 1 . Recycling Units 3 | . . 1 2 . Scanalyzers 1 | . . 1 . . Garrison Access 1 | . . . 1 . Total Hacks 63 | . 18 14 25 6 Successful 29 | . 6 8 12 3 Failed 32 | . 11 5 13 3 Catastrophic 6 | . 2 1 2 1 Database Lockouts 2 | . 1 1 . . Manual 15 | . 7 4 4 . Terminals 44 | . 15 8 15 6 Fabricators . | . . . . . Repair Stations 8 | . 3 2 3 . Recycling Units 5 | . . 1 4 . Scanalyzers 3 | . . 3 . . Garrison Access 3 | . . . 3 . Terminal Hacks 18 | . 4 4 7 3 Robot Analysis 4 | . 2 2 . . Prototype ID Bank 2 | . . 1 1 . Open Door 2 | . . . 1 1 Emergency Access Points 1 | . . . . 1 Terminal Index 1 | . 1 . . . Recycling Unit Index 1 | . 1 . . . Unreport Threat 1 | . . . 1 . Locate Traps 2 | . . . 2 . Security Status 1 | . . . 1 . Transport Status 1 | . . 1 . . Registered Components 1 | . . . 1 . Garrison Registry 1 | . . . . 1 Fabricator Hacks . | . . . . . Repair Station Hacks 6 | . 2 2 2 . Scan Component 4 | . 1 1 2 . Repair 2 | . 1 1 . . Recycling Unit Hacks 1 | . . . 1 . Report Inventory 1 | . . . 1 . Scanalyzer 2 | . . 2 . . Retrieve Study 2 | . . 2 . . Garrison Access Hacks 1 | . . . 1 . Unlock Access 1 | . . . 1 . Unauthorized Hacks 1 | . . . 1 . Terminals . | . . . . . Fabricators . | . . . . . Repair Stations . | . . . . . Recycling Units 1 | . . . 1 . Mask 1 | . . . 1 . Scanalyzers . | . . . . . Garrison Access . | . . . . . Data Cores Recovered 2 | . 1 . 1 . Used . | . . . . . Hacking Detections 20 | . 7 3 8 2 Full Trace Events 2 | . 1 . 1 . Feedback Events . | . . . . . Feedback Blocked . | . . . . . Robot Schematics Acquired . | . . . . . Robots Built . | . . . . . Authchips . | . . . . . Time . | . . . . . Total Robot Build Rating . | . . . . . Part Schematics Acquired . | . . . . . Parts Built . | . . . . . Authchips . | . . . . . Time . | . . . . . Total Part Build Rating . | . . . . . Part Studies Acquired 2 | . . 2 . . Parts Repaired 2 | . 1 1 . . Time 52 | . 26 26 . . Parts Recycled . | . . . . . Recycled Matter . | . . . . . Retrieved Matter . | . . . . . Retrieved Components . | . . . . . Parts Scanalyzed . | . . . . . Part Schematics Acquired . | . . . . . Parts Damaged . | . . . . . Bothacking | -11 -10 -9 -9 -9 ------------ Run | Yrd Mat Mat Sto Gar Used RIF Installer . | . . . . . Robots Hacked . | . . . . . Non-combat . | . . . . . Combat . | . . . . . Robot Hacks Applied . | . . . . . Relay Couplers Released 20 | . . . . 20 Machine Destruction 20 | . . . . 20 Fabnet Peak Effective % . | . . . . . Robots Rewired 4 | . . . . 4 Allies Hacked . | . . . . . Hacks Repelled . | . . . . . Allies | -11 -10 -9 -9 -9 -------- Run | Yrd Mat Mat Sto Gar Total Allies 7 | . . . 2 5 Largest Group 5 | . . . 2 5 Highest-Rated Group 115 | . . . 62 115 Highest-Rated Ally 31 | . . . 31 31 Total Orders . | . . . . . Ally Attacks 59 | . . . 27 32 Total Damage 998 | . . . 398 600 Kills 14 | . . . 4 10 Allies Corrupted 1 | . . . . 1 Allies Melted . | . . . . . Intel | -11 -10 -9 -9 -9 ------- Run | Yrd Mat Mat Sto Gar Active Infowar (turns) . | . . . . . Robot Analysis Total 4 | . 2 2 . . Derelict Logs Recovered . | . . . . . Drone Launches . | . . . . . Drone Recoveries . | . . . . . Exploration | -11 -10 -9 -9 -9 ------------- Run | Yrd Mat Mat Sto Gar Turns Passed 4707 | 91 1262 1212 1148 994 Spaces Moved 2229 | 54 644 598 543 390 Core 8 | 4 . . . 4 Treads 1825 | 50 644 598 509 24 Legs 362 | . . . . 362 Wheels 34 | . . . 34 . Hover . | . . . . . Flight . | . . . . . Fastest Speed 50 | 50 160 160 135 90 Average Speed 163 | 151 160 160 160 182 Slowest Speed 550 | 160 160 160 240 550 Overloaded Moves . | . . . . . Propulsion Burnouts . | . . . . . Robots Hopped . | . . . . . Potential Cave-ins . | . . . . . Cave-ins Triggered . | . . . . . Exploration Rate (%) 56 | 5 94 59 79 44 Regions Visited 4 Branch Regions 1 Pre-discovered Areas . | . . . . . Known Exits Taken 1 | . . . 1 . Unknown Exits Taken 3 | 1 1 1 . . Scrap Searched . | . . . . . Spaces Dug . | . . . . . Terrain Destroyed 70 | . . . . 70 Melee . | . . . . . Projectile . | . . . . . AOE 70 | . . . . 70 Terrain Rammed . | . . . . . Walls Destroyed . | . . . . . Machines Disabled . | . . . . . Actions | -11 -10 -9 -9 -9 --------- Run | Yrd Mat Mat Sto Gar Total 2843 | 60 774 728 695 586 Wait 176 | . 50 35 49 42 Move 2225 | 53 643 597 542 390 Hop . | . . . . . Pick Up 34 | 1 11 9 6 7 Fast Attach 24 | 6 2 1 6 9 Attach 12 | . 1 2 3 6 Detach 7 | . . . 4 3 Swap 21 | . 7 7 5 2 Drop 29 | . 6 9 10 4 Fire 239 | . 53 68 70 48 Melee 6 | . . . . 6 Ram . | . . . . . Kick . | . . . . . Crush 1 | . 1 . . . Escape Stasis 10 | . . . . 10 Rewire 26 | . . . . 26 Trap 33 | . . . . 33 Miscellaneous . | . . . . . Route ------- -11/Scrapyard -10/Materials (discovered 6 exits: *Mat x3 / [*Min x2] / [*Sub]) -9/Materials (discovered 3 exits: [*Mat] / [*Min] / *Sto) -9/Storage -9/Garrison (discovered 3 exits: [Rec x3]) History --------- Turn | Location | Event 8 | -11/Scrapyard | Discovered new exit (range 14) 92 | -11/Scrapyard | Entered Materials 197 | -10/Materials | Discovered new exit (range 15) 217 | -10/Materials | Discovered new exit (range 12) 308 | -10/Materials | Build established: Mutant 450 | -10/Materials | Discovered new exit (range 4) 902 | -10/Materials | Discovered new exit (range 10) 1012 | -10/Materials | Central database locked down 1147 | -10/Materials | Repaired Lgt. Cannon 1293 | -10/Materials | Discovered new exit (range 16) 1342 | -10/Materials | Discovered new exit (range 5) 1354 | -10/Materials | Entered another Materials area 1354 | -9/Materials | Evolved 2 slots: Propulsion x1, Utility x1 1926 | -9/Materials | Destroyed 8 combat bots 2027 | -9/Materials | Central database locked down 2152 | -9/Materials | Discovered new exit (range 3) 2283 | -9/Materials | Discovered new exit (range 16) 2457 | -9/Materials | Discovered new exit (range 11) 2541 | -9/Materials | Repaired Lgt. Cannon+ 2566 | -9/Materials | Entered Storage 2841 | -9/Storage | Met a pair of Derelict thieves 3713 | -9/Storage | Identified exit to Garrison 3714 | -9/Storage | Entered Garrison 3734 | -9/Garrison | Triggered checkpoint 3754 | -9/Garrison | Triggered checkpoint 3765 | -9/Garrison | Core integrity fell below 50% 3792 | -9/Garrison | Core integrity fell below 20% 3816 | -9/Garrison | Lost 9 parts (1p3n3u2w) 3974 | -9/Garrison | Garrison Relay disabled 4125 | -9/Garrison | Build established: Scavenger-Mutant 4212 | -9/Garrison | Rescued a captive Derelict 4363 | -9/Garrison | Garrison Relay disabled 4365 | -9/Garrison | Lost 4 allies 4366 | -9/Garrison | Garrison Relay disabled 4383 | -9/Garrison | Garrison Relay disabled 4411 | -9/Garrison | Garrison Relay disabled 4452 | -9/Garrison | Triggered checkpoint 4572 | -9/Garrison | Phase Generator disabled 4578 | -9/Garrison | Discovered new exit (range 41) 4578 | -9/Garrison | Discovered new exit (range 78) 4578 | -9/Garrison | Discovered new exit (range 69) 4670 | -9/Garrison | Triggered checkpoint 4708 | -9/Garrison | Destroyed by S-10 Pest with Light Assault Rifle Last Messages --------------- 04576_ An alarm sounds. 04578_ Connecting with Garrison Terminal... 04578_ EXIT=FOUND >>Download(Registry) Retrieving Garrison registry... Downloaded map data. Downloaded component registry. Downloaded security status. 04580_ The unstable cave ceiling collapses. 04633_ Acquired Lgt. Nuclear Core. 04641_ Acquired 10 matter. 04676_ Y-45 Defender destroyed. Garrison Door activated. 04697_ Lgt. Armor Plating destroyed. 04699_ S-10 Pest destroyed. 04701_ Destroyed Flight Unit. 04701_ S-10 Pest suffers critical hit (Destroy). 04701_ Destroyed Flight Unit. 04703_ Hrd. Medium Armor Plating destroyed. 04704_ S-10 Pest destroyed. Map ----- +----------------------------------------------------+ | ########???????????????????# #?# #????????#####?? | | ????# #????????????############ ##########"T"#?? | | ????# #????????????# # "#?? | | ##############??????# #### ########?? | | #??????# ########### #??# #????????? | | #??????# #???# #???# #?#####???????? | | #??????# #???# #???#^#?# #???????? | | ########## #??????# #???# #???# ###"""######### | | ?????# #?# #??????# ##### #???# | | ?????# #?#^^ #??????# # #??####### ####### | | ?????# #?#^^ #??????# #######??# #??# #????#"""" | | ###### #?#^^^######## #????????## #??# #????##### | | #?# ## ## #?????????# #??# #????????? | | ###### #?# ##""""## ##????????# #??# #????????? | | ?????# ### ########## #### #????????? | | ?????# # # # ########## | | ?????##### #### ########## #]]]]##^"" | | ?????????# ## ## #??# #????????# ^ | | ???????### ## ## #### #????????###!!!!## "" | | ???????# " # #??????????########## | | ######## " ####???????????????????? | | # # " #??????????????????????? | | # ###### " #??????????????????????? | | # #????### ## ## ###??????????????????????? | | ########## ## ## %########################## | | !%@= ; | | s =[= | | ######## s s ######## ################ | | #???# ## ## s ######??????# #??????????????? | | ##### ### ## #???????????# #??############# | | # ### #######???????????# #?###"" ""###### | | ##### # #?# #?????????????# #?###"!!!! # | | #???# ### #?# #?????????????# #?## ! !"#### | | #???# #?# #?# #?????????????#= ##### #"" "" | | #########^^### #?????????????#[%##=%!% !!^ | | ^^# #?????????????#!%[% !! "" | | #####?????????????#%=##[*%*! !!! "" | | ############?????????????????# %#####!#"" "" "" | | #????????????????????????????#==#?## !!"#### | | #????????????????????????????#*[#?###" !! # | | #??????????????????###########% #?###""" ###### | | #??????????????????# #??############# | | #??????????????????# ##### ### #??????????????? | | #??????????????????# #??## ### #???????#####??? | | #??????????????????# #??# ## #???????# #??? | | #?????????????????## #### %## ######### #### | | #?????????????????# === | | #?????????????????# !%%= | | #?????????????????# ##### ############### ##### | | #???????????????### #???# #?????????????# #???? | +----------------------------------------------------+ Best States ------------- Heat Dissipation 28 Energy Generation 14 Energy Capacity 280 Matter Stores 500 Matter Capacity 500 Sight Range 16 Terrain Scan Density 10 Armor Coverage 375 Evasion (%) 40 Recoil Reduction 3 Item Schematics ----------------- None Robot Schematics ------------------ None Fabricated ------------ Nothing Repaired ---------- Lgt. Cannon | 71% | -10/Materials Lgt. Cannon | 12% | -9/Materials Studied --------- Imp. Treads | -9/Materials | Hacked Lgt. Cannon | -9/Materials | Hacked Alien Tech Used ----------------- None Achievements -------------- Armchair Analyst Myspace Challenges ------------ None Game ------ Seed NetworkedReflexVibroblade Manual? 0 Play Time 00:39:31 Cumulative 30.2 hours Start 2025.11.08 @ 14:58:19 End 2025.11.08 @ 15:40:55 Sessions 1 Manual Loads 0 Difficulty Rogue Special Mode None Game No. 64 Rogue 64 Adventurer 0 Explorer 0 Win Type - Total 0 Types 0/0/0/0/0/0/0/0/0/0 Lore% 17 Gallery% 26 Achievement% 23 Wizard Run 0 Options --------- Layout 0 ASCII 1 Keyboard 1 Movement Numpad Keybinds 0 Fullscreen 1 Font 18/VGA_Max Map View 76x50 Zoom Use 0% Tactical HUD 1 Map Filters NONE Filters NONE Steam 1 RUN: fd663a14-8f1f-4043-aa1b-389d3be87748